bitfinex-derivatives/quotes_BNBF0:USTF0_20250401
["timestamp","ask_amount","ask_price","bid_price","bid_amount"]
[1743518232949,0.28310636,615.37,614.49,0.26926218]
[1743518233156,1.6236171,615.36,614.48,0.26926218]
[1743518233344,0.28310636,615.37,614.49,0.26926218]
[1743518233345,3.09082669,615.35,614.49,0.26926218]
[1743518233645,1.6236171,615.34,614.5,0.26926218]
[1743518233845,1.6085043,615.33,614.51,0.26926218]
[1743518234049,1.46720959,615.33,614.52,0.26926218]
[1743518234245,1.46720959,615.33,614.48,0.26926218]
[1743518234644,1.46720959,615.32,614.48,0.26926218]
[1743518235150,0.366,615.49,614.48,0.26926218]
[1743518235351,0.28312018,615.31,614.48,0.26926218]
[1743518235753,0.366,615.49,614.48,0.26926218]
[1743518236059,2.59783271,615.48,614.49,0.2689194]
[1743518236260,2.59783271,615.47,614.5,0.2689194]
[1743518236462,2.59783271,615.46,614.48,0.2689194]
[1743518236653,2.59783271,615.45,614.48,0.2689194]
[1743518236858,2.59783271,615.45,614.47,0.427]
[1743518236859,2.59783271,615.44,614.49,0.4989194]
[1743518237055,3.81437464,615.44,614.5,0.2689194]
[1743518237561,1.46706717,615.43,614.5,0.2689194]
[1743518238154,1.46706717,615.42,614.5,0.2689194]
[1743518238560,1.46706717,615.41,614.5,0.2689194]
[1743518239262,1.46706717,615.4,614.5,0.2689194]
[1743518240058,1.46706717,615.39,614.5,0.2689194]
[1743518240258,1.46706717,615.39,614.51,0.35]
[1743518240561,4.06488896,615.38,614.52,0.2689194]
[1743518240765,1.46706717,615.38,614.52,0.2689194]
[1743518241166,1.75016662,615.37,614.52,0.2689194]
[1743518241858,1.46706717,615.36,614.52,0.2689194]
[1743518242063,0.28309945,615.37,614.52,0.2689194]
[1743518242965,1.46691356,615.36,614.53,0.2689194]
[1743518243166,1.46691356,615.36,614.54,0.2689194]
[1743518243361,0.28309945,615.37,614.55,0.2689194]
[1743518243569,0.28309945,615.37,614.56,0.2689194]
[1743518243769,0.28309945,615.37,614.52,0.2689194]
[1743518243970,0.413,615.36,614.53,0.2689194]
[1743518244161,0.413,615.36,614.52,0.2689194]
[1743518244366,0.413,615.36,614.51,0.35]
[1743518244367,0.28304419,615.35,614.53,0.2689194]
[1743518244570,0.28304419,615.35,614.52,0.2689194]
[1743518244770,0.28304419,615.35,614.51,0.35]
[1743518244963,0.28304419,615.35,614.52,0.26861705]
[1743518246870,0.413,615.36,614.53,0.26861098]
[1743518247069,0.413,615.36,614.52,0.26861098]
[1743518247369,0.28310175,615.34,614.53,0.26861098]
[1743518247570,0.28310175,615.34,614.52,0.26861098]
[1743518247774,0.28310175,615.34,614.53,0.26861098]
[1743518247973,0.28310175,615.34,614.54,0.26861098]
[1743518248164,0.28310175,615.34,614.52,0.26861098]
[1743518248368,0.28310175,615.34,614.53,0.26861098]
[1743518248564,0.28310175,615.34,614.51,0.35]
[1743518248565,0.28310175,615.34,614.52,0.26861098]
[1743518248766,0.28310175,615.34,614.53,0.26861098]
[1743518248970,0.28310175,615.34,614.54,0.26861098]
[1743518249170,0.28310175,615.34,614.52,0.26861098]
[1743518249372,0.28310175,615.34,614.53,0.26861098]
[1743518249571,0.28310175,615.34,614.52,0.26861098]
[1743518249771,0.28310175,615.34,614.53,0.26861098]
[1743518249966,0.413,615.36,614.52,0.26861098]
[1743518250172,0.413,615.36,614.53,0.26861098]
[1743518250377,0.413,615.36,614.52,0.26861098]
[1743518250567,0.413,615.36,614.53,0.26861098]
[1743518250769,0.413,615.36,614.54,0.26861098]
[1743518251072,0.413,615.36,614.55,0.26861098]
[1743518251073,0.28304764,615.35,614.55,0.26861098]
[1743518251272,0.28304764,615.35,614.51,0.35]
[1743518251273,0.28304764,615.35,614.52,0.26861098]
[1743518251468,0.28304764,615.35,614.53,0.26861098]
[1743518251672,0.28304764,615.35,614.52,0.26861098]
[1743518251873,0.28304764,615.35,614.53,0.26861098]
[1743518252072,0.28304764,615.35,614.54,0.26861098]
[1743518252270,0.28304764,615.35,614.52,0.26861098]
[1743518252471,0.28304764,615.35,614.53,0.26861098]
[1743518252772,0.28304764,615.35,614.54,0.26861098]
[1743518252966,0.413,615.36,614.52,0.26861098]
[1743518253170,0.413,615.36,614.53,0.26851131]
[1743518253370,0.413,615.36,614.52,0.26851131]
[1743518253568,0.28305455,615.35,614.53,0.26851131]
[1743518253774,0.28305455,615.35,614.52,0.26851131]
[1743518253967,0.28305455,615.35,614.53,0.26851131]
[1743518254170,1.62344732,615.34,614.52,0.26851131]
[1743518254366,0.28305455,615.35,614.51,0.35]
[1743518254367,0.28305455,615.35,614.53,0.26851131]
[1743518254570,1.62345727,615.34,614.51,0.35]
[1743518254872,0.28305455,615.35,614.51,0.35]
[1743518254873,1.62345727,615.33,614.52,0.2684527]
[1743518255073,0.32503941,615.31,614.52,0.2684527]
[1743518256774,0.32503941,615.31,614.51,0.35]
[1743518256971,0.28311097,615.3,614.51,0.35]
[1743518257373,0.32504997,615.29,614.52,0.26866713]
[1743518259276,1.62360167,615.28,614.52,0.26866713]
[1743518259471,0.32506054,615.27,614.53,0.26866713]
[1743518259674,0.32506054,615.27,614.54,0.26862573]
[1743518259874,0.32506054,615.27,614.5,0.26862573]
[1743518260074,0.32506054,615.27,614.51,0.26862573]
[1743518260273,0.32506054,615.27,614.5,0.26862573]
[1743518260477,0.32506054,615.27,614.51,0.26862573]
[1743518260772,0.32506054,615.27,614.52,0.26862573]
[1743518260973,0.32506054,615.27,614.5,0.26862573]
[1743518261179,0.32506054,615.27,614.51,0.26862573]
[1743518261377,0.32506054,615.27,614.52,0.26862573]
[1743518261575,0.32506054,615.27,614.53,0.26862573]
[1743518261772,0.435,615.26,614.54,0.26862573]
[1743518261979,0.435,615.26,614.55,0.26862573]
[1743518262178,0.3250711,615.25,614.56,0.26862573]
[1743518262373,0.60819819,615.25,614.57,0.26862573]
[1743518262576,0.60819819,615.25,614.58,0.26862573]
[1743518262780,0.60819819,615.25,614.59,0.26862562]
[1743518263080,0.60819819,615.25,614.6,0.26862562]
[1743518263280,0.60819819,615.25,614.61,0.26862562]
[1743518263478,0.60819819,615.25,614.62,0.26862562]
[1743518263681,0.60819819,615.25,614.53,0.26862562]
[1743518263879,0.60819819,615.25,614.54,0.26862562]
[1743518264081,0.60819819,615.25,614.53,0.26862562]
[1743518264277,0.60819819,615.25,614.54,0.26862562]
[1743518264480,0.60819819,615.25,614.55,0.26862562]
[1743518264789,0.3250711,615.25,614.56,0.26862562]
[1743518265082,0.3250711,615.25,614.57,0.26862562]
[1743518265278,0.3250711,615.25,614.58,0.26862562]
[1743518265584,0.28311903,615.24,614.59,0.26862562]
[1743518265884,0.32508167,615.23,614.6,0.26862562]
[1743518266083,0.32508167,615.23,614.61,0.26862562]
[1743518266283,0.32508167,615.23,614.52,0.394]
[1743518266284,0.32508167,615.23,614.62,0.26862562]
[1743518266478,0.32508167,615.23,614.63,0.26862562]
[1743518266683,0.32508167,615.23,614.64,0.26862562]
[1743518266884,0.32508167,615.23,614.65,0.26862562]
[1743518267183,0.32508167,615.23,614.66,0.26862562]
[1743518267385,0.32508167,615.23,614.67,0.26862562]
[1743518267685,0.32508167,615.23,614.68,0.26862562]
[1743518267877,0.32508167,615.23,614.69,0.26862562]
[1743518268078,0.32508167,615.23,614.7,0.26862562]
[1743518268286,0.32508167,615.23,614.71,0.26862562]
[1743518268485,0.32508167,615.23,614.72,0.26862562]
[1743518268686,0.32508167,615.23,614.73,0.26862562]
[1743518268886,0.32508167,615.23,614.52,0.394]
[1743518268887,0.32508167,615.23,614.53,0.26862562]
[1743518269081,0.32508167,615.23,614.54,0.26862562]
[1743518269289,0.32508167,615.23,614.55,0.26862562]
[1743518269487,0.32508167,615.23,614.56,0.26862562]
[1743518269692,0.32508167,615.23,614.57,0.26862562]
[1743518269893,0.32508167,615.23,614.58,0.26862562]
[1743518270086,0.32508167,615.23,614.59,0.26862562]
[1743518270288,0.32508167,615.23,614.6,0.26862562]
[1743518270587,0.32508167,615.23,614.61,0.26862562]
[1743518270787,0.32508167,615.23,614.62,0.26862562]
[1743518270980,0.32508167,615.23,614.63,0.26862562]
[1743518271182,0.32508167,615.23,614.64,0.26862562]
[1743518271387,0.32508167,615.23,614.65,0.26862562]
[1743518271585,0.32508167,615.23,614.66,0.26862562]
[1743518271783,0.32508167,615.23,614.67,0.26862562]
[1743518271984,0.32508167,615.23,614.56,0.23]
[1743518272184,0.28309139,615.22,614.57,0.26847774]
[1743518272388,0.32509224,615.21,614.58,0.26847774]
[1743518272684,0.32509224,615.21,614.59,0.26847774]
[1743518272885,0.32509224,615.21,614.57,0.26847774]
[1743518273084,0.32509224,615.21,614.58,0.26847774]
[1743518273284,0.32509224,615.21,614.59,0.26847774]
[1743518273486,0.32509224,615.21,614.6,0.26847774]
[1743518273687,0.32509224,615.21,614.61,0.26844603]
[1743518273889,0.32509224,615.21,614.57,0.26844603]
[1743518274188,0.32509224,615.21,614.58,0.26844603]
[1743518274385,0.32509224,615.21,614.57,0.26844603]
[1743518274585,0.32509224,615.21,614.58,0.26844603]
[1743518274785,0.32509224,615.21,614.57,0.26844603]
[1743518274984,0.32509224,615.21,614.58,0.26844603]
[1743518275190,0.32509224,615.21,614.57,0.26844603]
[1743518275490,0.32509224,615.21,614.56,0.23]
[1743518275491,0.32509224,615.21,614.58,0.26844603]
[1743518275691,0.32509224,615.21,614.57,0.26844603]
[1743518275891,0.32509224,615.21,614.58,0.26844603]
[1743518276192,0.32509224,615.21,614.59,0.26844603]
[1743518279994,0.32509224,615.21,614.6,0.26826303]
[1743518280187,0.32509224,615.21,614.58,0.369]
[1743518280188,0.32509224,615.21,614.59,0.26826303]
[1743518280390,0.32509224,615.21,614.6,0.26826303]
[1743518280588,0.32509224,615.21,614.61,0.26826303]
[1743518280893,0.32509224,615.21,614.62,0.26826303]
[1743518281092,0.28311442,615.2,614.58,0.369]
[1743518281289,0.32510281,615.19,614.59,0.26824333]
[1743518282094,0.32510281,615.19,614.6,0.26828937]
[1743518282290,0.32510281,615.19,614.59,0.26828937]
[1743518282495,0.32510281,615.19,614.6,0.26828937]
[1743518282793,0.32510281,615.19,614.61,0.26828937]
[1743518282997,0.32510281,615.19,614.62,0.26828937]
[1743518283196,0.32510281,615.19,614.59,0.26828937]
[1743518283398,0.32510281,615.19,614.6,0.26828937]
[1743518283593,0.32510281,615.19,614.61,0.26828937]
[1743518283797,0.32510281,615.19,614.59,0.26828937]
[1743518283992,0.32510281,615.19,614.6,0.26828937]
[1743518284196,0.28311903,615.18,614.59,0.26828937]
[1743518284397,0.32511338,615.17,614.6,0.26828937]
[1743518284592,0.32511338,615.17,614.61,0.26828937]
[1743518285091,0.32511338,615.17,614.62,0.26828937]
[1743518285295,0.32511338,615.17,614.63,0.26828937]
[1743518285493,0.32511338,615.17,614.64,0.26828937]
[1743518287198,0.28308563,615.16,614.64,0.26828937]
[1743518287396,0.32512395,615.15,614.64,0.26828937]
[1743518288695,0.366,615.14,614.64,0.26828937]
[1743518288896,0.32513452,615.13,614.64,0.26828937]
[1743518289397,0.32513452,615.13,614.63,0.229]
[1743518290298,0.28313746,615.12,614.63,0.229]
[1743518290497,0.32514509,615.11,614.64,0.26857829]
[1743518293300,0.28365557,615.1,614.64,0.26857829]
[1743518293699,0.28365557,615.1,614.63,0.229]
[1743518294000,0.28365557,615.1,614.64,0.26841027]
[1743518294800,0.32515566,615.09,614.64,0.26841027]
[1743518295000,0.32515566,615.09,614.65,0.338]
[1743518295200,0.32515566,615.09,614.66,0.26841027]
[1743518298307,0.28312018,615.08,614.66,0.26841027]
[1743518298509,0.32516624,615.07,614.66,0.26841027]
[1743518303008,0.32516624,615.07,614.65,0.338]
[1743518303210,0.32516624,615.07,614.66,0.26834914]
[1743518304507,0.80416624,615.07,614.66,0.26834914]
[1743518305106,0.28311903,615.06,614.66,0.26834914]
[1743518305306,0.32517681,615.05,614.66,0.26834914]
[1743518306110,0.32517681,615.05,614.63,0.229]
[1743518306306,0.32517681,615.05,614.64,0.2682536]
[1743518306706,0.32517681,615.05,614.65,0.2682536]
[1743518306906,0.32517681,615.05,614.66,0.2682536]
[1743518307110,0.32517681,615.05,614.67,0.2682536]
[1743518307506,0.32517681,615.05,614.68,0.2682536]
[1743518307708,0.32517681,615.05,614.69,0.2682536]
[1743518307907,0.32517681,615.05,614.7,0.2682536]
[1743518308105,0.28356889,615.04,614.71,0.2682536]
[1743518308305,0.28356889,615.04,614.72,0.2682536]
[1743518308507,0.28356889,615.04,614.73,0.2682536]
[1743518308706,0.28356889,615.04,614.74,0.2682536]
[1743518308910,0.28356889,615.04,614.75,0.2682536]
[1743518309112,0.28356889,615.04,614.76,0.2682536]
[1743518309313,0.28356889,615.04,614.65,0.486]
[1743518309509,0.28356889,615.04,614.66,0.2677962]
[1743518309712,0.28356889,615.04,614.67,0.2677962]
[1743518309914,0.32517681,615.05,614.68,0.2677962]
[1743518310109,0.32517681,615.05,614.69,0.2677962]
[1743518310311,0.32517681,615.05,614.7,0.2677962]
[1743518310511,0.28304304,615.04,614.71,0.2677962]
[1743518310713,0.28304304,615.04,614.72,0.2677962]
[1743518310912,0.28304304,615.04,614.67,0.2677962]
[1743518311208,0.28304304,615.04,614.68,0.2677962]
[1743518311409,0.28304304,615.04,614.66,0.229]
[1743518311410,0.28304304,615.04,614.69,0.2677962]
[1743518311614,0.28304304,615.04,614.7,0.2677962]
[1743518311814,0.28304304,615.04,614.71,0.2677962]
[1743518312016,0.28304304,615.04,614.72,0.2677962]
[1743518312215,0.28304304,615.04,614.73,0.2677962]
[1743518312415,0.28304304,615.04,614.66,0.229]
[1743518312614,0.28304304,615.04,614.67,0.26774235]
[1743518312812,0.28304304,615.04,614.68,0.26774235]
[1743518313015,0.28304304,615.04,614.69,0.26774235]
[1743518313210,0.28304304,615.04,614.66,0.229]
[1743518313211,0.28304304,615.04,614.7,0.26774235]
[1743518313412,0.32517681,615.05,614.71,0.26774235]
[1743518313618,0.479,615.07,614.72,0.26774235]
[1743518313818,0.479,615.07,614.73,0.26774235]
[1743518314017,0.479,615.07,614.74,0.26774235]
[1743518314214,0.479,615.07,614.66,0.229]
[1743518314215,0.479,615.07,614.75,0.26774235]
[1743518314413,0.479,615.07,614.76,0.26774235]
[1743518314616,0.479,615.07,614.77,0.26774235]
[1743518314817,0.479,615.07,614.78,0.26774235]
[1743518315019,0.479,615.07,614.79,0.26774235]
[1743518315212,0.479,615.07,614.8,0.26774235]
[1743518315718,0.479,615.07,614.81,0.26774235]
[1743518315917,0.479,615.07,614.82,0.26774235]
[1743518316114,0.479,615.07,614.83,0.26774235]
[1743518316419,0.479,615.07,614.84,0.26774235]
[1743518316722,0.479,615.07,614.85,0.26774235]
[1743518316914,0.479,615.07,614.86,0.26774235]
[1743518317111,0.479,615.07,614.87,0.26774235]
[1743518317313,0.479,615.07,614.88,0.26774235]
[1743518317516,0.479,615.07,614.89,0.26774235]
[1743518317717,0.479,615.07,614.9,0.26774235]
[1743518318020,0.479,615.07,614.91,0.26774235]
[1743518318215,0.479,615.07,614.92,0.26774235]
[1743518318521,0.479,615.07,614.93,0.26774235]
[1743518318722,0.479,615.07,614.94,0.26774235]
[1743518319022,0.479,615.07,614.95,0.26774235]
[1743518319216,0.479,615.07,614.96,0.26774235]
[1743518319417,0.479,615.07,614.97,0.26774235]
[1743518319620,0.479,615.07,614.98,0.26774235]
[1743518319915,0.479,615.07,614.99,0.26774235]
[1743518320122,0.479,615.07,614.66,0.229]
[1743518320123,0.479,615.07,615.0,0.26774235]
[1743518320422,0.479,615.07,615.01,0.26774235]
[1743518320620,0.479,615.07,615.02,0.26774235]
[1743518320820,0.479,615.07,614.67,0.26774235]
[1743518321015,0.479,615.07,614.68,0.26774235]
[1743518321216,0.479,615.07,614.66,0.229]
[1743518321217,0.479,615.07,614.69,0.26774235]
[1743518321419,0.479,615.07,614.7,0.26774235]
[1743518321621,0.479,615.07,614.71,0.26774235]
[1743518321818,0.479,615.07,614.66,0.229]
[1743518322018,0.479,615.07,614.67,0.26743264]
[1743518322224,0.479,615.07,614.66,0.229]
[1743518322225,0.479,615.07,614.68,0.26743264]
[1743518322520,0.479,615.07,614.69,0.26743264]
[1743518322718,0.479,615.07,614.7,0.26743264]
[1743518322923,0.479,615.07,614.71,0.26743264]
[1743518323122,0.479,615.07,614.72,0.26743264]
[1743518323324,0.479,615.07,614.66,0.229]
[1743518323325,0.479,615.07,614.73,0.26743264]
[1743518323520,0.479,615.07,614.74,0.26747016]
[1743518323717,0.479,615.07,614.75,0.26747016]
[1743518323920,0.479,615.07,614.76,0.26747016]
[1743518324222,0.479,615.07,614.77,0.26747016]
[1743518324420,0.479,615.07,614.78,0.26747016]
[1743518324626,0.479,615.07,614.79,0.26747016]
[1743518324924,0.479,615.07,614.8,0.26747016]
[1743518325225,0.479,615.07,614.81,0.26747016]
[1743518325426,0.479,615.07,614.82,0.26747016]
[1743518325620,0.479,615.07,614.83,0.26747016]
[1743518325824,0.479,615.07,614.84,0.26747016]
[1743518326024,0.479,615.07,614.85,0.26747016]
[1743518326217,0.479,615.07,614.86,0.26747016]
[1743518326417,0.479,615.07,614.87,0.26747016]
[1743518326622,0.479,615.07,614.88,0.26746209]
[1743518327119,0.479,615.07,614.89,0.26746209]
[1743518327324,0.479,615.07,614.9,0.26746209]
[1743518327519,0.479,615.07,614.91,0.26746209]
[1743518327722,0.479,615.07,614.92,0.26746209]
[1743518327922,0.479,615.07,614.93,0.26746209]
[1743518328124,0.479,615.07,614.94,0.26750339]
[1743518328322,0.479,615.07,614.67,0.26750339]
[1743518328519,0.479,615.07,614.68,0.26750339]
[1743518328825,0.479,615.07,614.69,0.26750339]
[1743518329021,0.479,615.07,614.67,0.26750339]
[1743518329225,0.479,615.07,614.68,0.26750339]
[1743518329420,0.479,615.07,614.67,0.26750339]
[1743518329624,0.479,615.07,614.69,0.26750339]
[1743518329824,0.479,615.07,614.7,0.26750339]
[1743518330026,0.479,615.07,614.71,0.26750339]
[1743518330329,0.479,615.07,614.72,0.26750339]
[1743518330525,0.479,615.07,614.73,0.26750339]
[1743518330721,0.479,615.07,614.74,0.26750339]
[1743518330919,0.479,615.07,614.75,0.26750339]
[1743518331122,0.479,615.07,614.76,0.26750339]
[1743518331519,0.479,615.07,614.77,0.26750339]
[1743518331720,0.479,615.07,614.67,0.26750339]
[1743518331924,0.479,615.07,614.68,0.26750339]
[1743518332121,0.479,615.07,614.69,0.26750339]
[1743518332320,0.479,615.07,614.66,0.229]
[1743518332321,0.479,615.07,614.7,0.26757824]
[1743518332521,0.479,615.07,614.71,0.26757824]
[1743518332726,0.479,615.07,614.72,0.26757824]
[1743518332925,0.479,615.07,614.73,0.26757824]
[1743518333225,0.479,615.07,614.74,0.26757824]
[1743518333420,0.479,615.07,614.75,0.26757824]
[1743518333627,0.479,615.07,614.76,0.26757824]
[1743518333822,0.479,615.07,614.67,0.26757824]
[1743518334027,0.479,615.07,614.68,0.26757824]
[1743518334222,0.479,615.07,614.69,0.26757824]
[1743518334428,0.479,615.07,614.66,0.229]
[1743518334429,1.59856775,615.95,614.7,0.26757824]
[1743518334623,4.86642937,615.94,614.71,0.26757824]
[1743518334825,4.86642937,615.93,614.72,0.26757824]
[1743518335022,1.59856775,615.9,614.73,0.26757824]
[1743518335230,0.32473858,615.88,614.74,0.26757824]
[1743518335525,4.86642937,615.87,614.75,0.26757824]
[1743518335730,0.3247544,615.85,614.76,0.26757824]
[1743518335926,0.3247544,615.85,614.66,0.229]
[1743518335927,4.86642937,615.84,614.77,0.26757824]
[1743518336127,0.32477022,615.82,614.78,0.26775724]
[1743518336329,0.32477022,615.82,614.66,0.229]
[1743518336330,4.86642937,615.81,614.79,0.26775724]
[1743518336526,0.32478604,615.79,614.8,0.26775724]
[1743518336727,4.86642937,615.78,614.81,0.26775724]
[1743518336930,0.32480187,615.76,614.82,0.26775724]
[1743518337131,4.86642937,615.75,614.83,0.26775724]
[1743518337325,0.32481769,615.73,614.67,0.26775724]
[1743518337529,4.21757212,615.72,614.68,0.26775724]
[1743518337730,4.21757212,615.72,614.66,0.229]
[1743518337731,0.32483352,615.7,614.69,0.26775724]
[1743518337926,4.21757212,615.69,614.7,0.26775724]
[1743518338231,0.32484935,615.67,614.71,0.26775724]
[1743518338431,4.21757212,615.66,614.67,0.26775724]
[1743518338631,0.32486518,615.64,614.68,0.26775724]
[1743518338836,4.21757212,615.63,614.69,0.26775724]
[1743518339130,0.32488101,615.61,614.7,0.26775724]
[1743518339331,4.21757212,615.6,614.71,0.26781833]
[1743518339531,1.62214312,615.59,614.67,0.26781833]
[1743518339726,1.62214312,615.58,614.68,0.26781833]
[1743518339932,0.3249074,615.56,614.67,0.26781833]
[1743518340132,1.62237018,615.55,614.68,0.65781833]
[1743518340433,1.62237018,615.54,614.69,0.26781833]
[1743518340634,4.21849047,615.53,614.7,0.26781833]
[1743518340830,0.28358738,615.55,614.68,0.39]
[1743518340831,4.21849047,615.52,614.69,0.26781833]
[1743518341133,0.32493907,615.5,614.7,0.26781833]
[1743518341432,1.62237018,615.49,614.71,0.26781833]
[1743518341634,4.54356717,615.48,614.72,0.26781833]
[1743518341832,1.62237018,615.47,614.73,0.26781833]
[1743518342029,0.32494963,615.48,614.73,0.26781833]
[1743518342030,1.62237018,615.46,614.73,0.26781833]
[1743518342233,1.94733565,615.45,614.74,0.26781833]
[1743518342533,1.94734093,615.44,614.75,0.26781833]
[1743518342734,1.94734621,615.43,614.76,0.26781833]
[1743518343034,1.62261821,615.42,614.77,0.26781833]
[1743518343231,1.62261821,615.42,614.68,0.39]
[1743518343232,1.62261821,615.41,614.78,0.26781833]
[1743518343433,0.28299815,615.42,614.79,0.26781833]
[1743518343633,0.28299815,615.42,614.8,0.26797745]
[1743518343828,0.32498659,615.41,614.81,0.26797745]
[1743518344032,0.32498659,615.41,614.82,0.26797745]
[1743518344229,0.32498659,615.41,614.83,0.26797745]
[1743518344428,0.32498659,615.41,614.84,0.26797745]
[1743518344633,0.32498659,615.41,614.85,0.26797745]
[1743518344931,0.32498659,615.41,614.86,0.26797745]
[1743518345233,0.32498659,615.41,614.87,0.26797745]
[1743518345428,0.32498659,615.41,614.78,0.229]
[1743518345429,0.32498659,615.41,614.88,0.26797745]
[1743518345628,0.32498659,615.41,614.89,0.26797745]
[1743518345834,0.32498659,615.41,614.9,0.26797745]
[1743518346029,0.32498659,615.41,614.91,0.26797745]
[1743518346229,0.32498659,615.41,614.79,0.26797745]
[1743518346435,0.32498659,615.41,614.8,0.26797745]
[1743518346636,0.32498659,615.41,614.81,0.26797745]
[1743518346830,0.32498659,615.41,614.78,0.229]
[1743518346831,0.32498659,615.41,614.82,0.26797745]
[1743518347035,0.32498659,615.41,614.83,0.26797745]
[1743518347229,0.32498659,615.41,614.84,0.26797745]
[1743518347435,0.32498659,615.41,614.85,0.26797745]
[1743518347634,0.32498659,615.41,614.86,0.26797745]
[1743518347833,0.32498659,615.41,614.87,0.26797745]
[1743518348029,0.32498659,615.41,614.88,0.26797745]
[1743518348336,0.32498659,615.41,614.89,0.26797745]
[1743518348537,0.32498659,615.41,614.9,0.26797745]
[1743518348736,0.32498659,615.41,614.91,0.26797745]
[1743518348937,0.32498659,615.41,614.92,0.26797745]
[1743518349135,0.32498659,615.41,614.93,0.26797745]
[1743518349336,0.32498659,615.41,614.94,0.26797745]
[1743518349538,0.28290268,615.4,614.95,0.26797745]
[1743518349741,0.28290268,615.4,614.96,0.26797745]
[1743518350040,0.28290268,615.4,614.97,0.26797745]
[1743518350440,0.28290268,615.4,614.98,0.26797745]
[1743518350639,0.28290268,615.4,614.79,0.26797745]
[1743518350839,0.28290268,615.4,614.8,0.26797745]
[1743518351039,0.28290268,615.4,614.81,0.26797745]
[1743518351338,0.28290268,615.4,614.82,0.26797745]
[1743518351735,0.28290268,615.4,614.83,0.26797745]
[1743518351940,0.32498659,615.41,614.84,0.26797745]
[1743518352140,0.32498659,615.41,614.85,0.26797745]
[1743518352440,0.28292453,615.39,614.86,0.26797745]
[1743518352640,0.28292453,615.39,614.87,0.26797745]
[1743518352842,0.28292453,615.39,614.88,0.26797745]
[1743518353040,0.28292453,615.39,614.78,0.229]
[1743518353041,0.28292453,615.39,614.89,0.26797745]
[1743518353443,0.28292453,615.39,614.9,0.26797745]
[1743518353743,0.28292453,615.39,614.91,0.26797745]
[1743518353942,0.307,615.38,614.92,0.26797745]
[1743518354140,0.307,615.38,614.93,0.26797745]
[1743518354342,0.307,615.38,614.94,0.26797745]
[1743518354545,0.307,615.38,614.95,0.26797745]
[1743518354745,0.307,615.38,614.96,0.26797745]
[1743518354944,0.307,615.38,614.97,0.26797745]
[1743518355140,0.307,615.38,614.78,0.229]
[1743518355141,0.307,615.38,614.98,0.26797745]
[1743518355346,0.307,615.38,614.99,0.26797745]
[1743518355639,0.307,615.38,615.0,0.26797745]
[1743518355845,0.307,615.38,614.79,0.26797745]
[1743518356144,0.28291993,615.37,614.8,0.26797745]
[1743518356345,0.28291993,615.37,614.81,0.26797745]
[1743518356544,0.28291993,615.37,614.78,0.229]
[1743518356545,0.28291993,615.37,614.82,0.2674512]
[1743518356746,0.28291993,615.37,614.83,0.2674512]
[1743518356946,0.28291993,615.37,614.84,0.2674512]
[1743518357344,0.28291993,615.37,614.85,0.2674512]
[1743518357542,0.28291993,615.37,614.78,0.229]
[1743518357543,0.28291993,615.37,614.86,0.2674512]
[1743518357747,0.28291993,615.37,614.87,0.2674512]
[1743518357970,0.28291993,615.37,614.68,0.39]
[1743518358145,0.28291993,615.37,614.69,0.26750299]
[1743518358345,0.28291993,615.37,614.7,0.26750299]
[1743518358645,0.28291993,615.37,614.71,0.26750299]
[1743518358844,0.28291993,615.37,614.68,0.39]
[1743518358845,0.28291993,615.37,614.72,0.26750299]
[1743518359049,0.28291993,615.37,614.73,0.26750299]
[1743518359247,0.28291993,615.37,614.74,0.26750299]
[1743518359445,0.28291993,615.37,614.75,0.26750299]
[1743518359651,0.28291993,615.37,614.76,0.26750299]
[1743518359847,0.28291993,615.37,614.77,0.26750299]
[1743518360046,0.28291993,615.37,614.78,0.26750299]
[1743518360246,0.28291993,615.37,614.79,0.26750299]
[1743518360452,0.28291993,615.37,614.8,0.26750299]
[1743518360654,0.28291993,615.37,614.81,0.26750299]
[1743518360847,0.307,615.38,614.82,0.26750299]
[1743518361244,0.307,615.38,614.83,0.26750299]
[1743518361449,0.307,615.38,614.84,0.26750299]
[1743518361646,0.307,615.38,614.85,0.26750299]
[1743518361851,0.307,615.38,614.86,0.26750299]
[1743518362051,0.307,615.38,614.87,0.26750299]
[1743518362252,0.2834638,615.37,614.88,0.26750299]
[1743518362453,0.2834638,615.37,614.89,0.26750299]
[1743518362655,0.2834638,615.37,614.9,0.26750299]
[1743518362853,0.2834638,615.37,614.91,0.26750299]
[1743518363154,0.2834638,615.37,614.92,0.26750299]
[1743518363349,0.2834638,615.37,614.93,0.26750299]
[1743518363554,0.2834638,615.37,614.94,0.26750299]
[1743518363854,0.307,615.38,614.95,0.26750299]
[1743518364049,0.307,615.38,614.96,0.26750299]